[Event "Amsterdam Chess Open 2024"]
[Site "Amsterdam"]
[Date "2024.11.02"]
[Round "4.13"]
[White "Sleeckx, Alexander"]
[Black "Baarslag, Ed"]
[Result "1/2-1/2"]
[ECO "B12"]
[WhiteElo "1928"]
[BlackElo "1993"]
[Annotator "RC"]
[PlyCount "143"]
[EventDate "2024.10.31"]
[EventType "swiss"]
[EventCountry "NED"]
[SourceTitle "playchess.com"]
[Source "ChessBase"]
[SourceQuality "1"]
[TimeControl "5400+30"]

1. e4 {[%emt 0:00:05]} c6 {[%emt 0:00:12]} 2. d4 {[%emt 0:00:06]} d5 {[%emt 0:00:08]} 3. f3 {[%emt 0:00:12]} e6 {[%emt 0:01:31]} 4. a3 {[%emt 0:03:10]} c5 {[%emt 0:02:14]} 5. dxc5 {[%emt 0:04:40]} Bxc5 {[%emt 0:00:41]} 6. Nc3 {[%emt 0:01:44]} Ne7 {[%emt 0:04:44]} 7. f4 {[%emt 0:09:01]} Nbc6 {[%emt 0:08:55]} 8. Nf3 {[%emt 0:00:00]} a6 {[%emt 0:07:14]} 9. Bd3 {[%emt 0:09:59]} Ba7 {[%emt 0:07:20]} 10. Qe2 {[%emt 0:02:13]} d4 {[%emt 0:17:14]} 11. Nd1 {[%emt 0:03:23]} b5 {[%emt 0:02:12]} 12. Bd2 {[%emt 0:01:20]} f6 {[%emt 0:04:11]} 13. O-O {[%emt 0:01:25]} Qc7 {[%emt 0:02:31]} 14. b4 {[%emt 0:05:56]} Bd7 {[%emt 0:05:34]} 15. Kh1 {[%emt 0:00:15]} Nd8 {[%emt 0:01:20]} 16. Nb2 {[%emt 0:04:26]} O-O {[%emt 0:01:08]} 17. a4 {[%emt 0:02:16]} Rb8 {[%emt 0:03:20]} 18. Rfc1 {[%emt 0:02:46]} Ng6 {[%emt 0:01:31]} 19. g3 {[%emt 0:01:05]} f5 {[%emt 0:03:13]} 20. c3 {[%emt 0:03:27]} dxc3 {[%emt 0:01:03]} 21. Bxc3 {[%emt 0:00:24]} Qb7 {[%emt 0:00:31]} 22. axb5 {[%emt 0:07:21]} axb5 {[%emt 0:00:24]} 23. Ne5 {[%emt 0:01:21]} Nxe5 {[%emt 0:05:06]} 24. Bxe5 {[%emt 0:00:23]} Bc6 {[%emt 0:02:07]} 25. Rxc6 {[%emt 0:00:24]} Nxc6 {[%emt 0:00:39]} 26. Bxb8 {[%emt 0:03:43]} Bxb8 {[%emt 0:03:41]} 27. Bxb5 {[%emt 0:03:10]} Nd4 {[%emt 0:01:24]} 28. Ba6 {[%emt 0:00:11]} Qxb4 {[%emt 0:01:35]} 29. Qf2 {[%emt 0:01:35]} Rd8 {[%emt 0:03:19]} 30. Bc4 {[%emt 0:04:02]} fxe4 {[%emt 0:02:05]} 31. Kg2 {[%emt 0:04:48]} Qb7 {[%emt 0:03:07]} 32. Kh3 {[%emt 0:00:33]} Kh8 {[%emt 0:01:35]} 33. Nd1 {[%emt 0:01:12]} Qf7 {[%emt 0:00:26]} 34. Ne3 {[%emt 0:02:38]} Qh5+ {[%emt 0:00:34]} 35. Kg2 {[%emt 0:00:15]} Qf3+ {[%emt 0:01:41]} 36. Qxf3 {[%emt 0:01:27]} exf3+ {[%emt 0:00:02]} 37. Kf2 {[%emt 0:00:35]} g6 {[%emt 0:01:38]} 38. Ra6 {[%emt 0:00:17]} Bd6 {[%emt 0:00:55]} 39. Ng4 {[%emt 0:02:03]} h5 {[%emt 0:00:59]} 40. Nf6 {[%emt 0:00:32]} Bf8 {[%emt 0:00:21]} 41. Bxe6 {[%emt 0:01:53]} Bg7 {[%emt 0:00:31]} 42. Ne4 {[%emt 0:00:53]} Rb8 {[%emt 0:00:25]} 43. Ng5 {[%emt 0:01:21]} Bf6 {[%emt 0:01:46]} 44. Nxf3 {[%emt 0:02:13]} Rb2+ {[%emt 0:00:07]} 45. Ke3 {[%emt 0:00:42]} Re2+ {[%emt 0:00:01]} 46. Kd3 {[%emt 0:00:46]} Rxe6 {[%emt 0:00:21]} 47. Ra8+ {[%emt 0:00:23]} Kg7 {[%emt 0:00:11]} 48. Nxd4 {[%emt 0:00:14]} Bxd4 {[%emt 0:00:17]} 49. Kxd4 {[%emt 0:00:16]} Re2 {[%emt 0:00:08]} 50. h4 {[%emt 0:00:45]} Rg2 {[%emt 0:00:52]} 51. Ra7+ {[%emt 0:00:27]} Kf6 {[%emt 0:00:15]} 52. Ra6+ {[%emt 0:00:08]} Kf7 {[%emt 0:00:03]} 53. Ra7+ {[%emt 0:00:11]} Kf6 {[%emt 0:00:02]} 54. Ra6+ {[%emt 0:00:10]} Kf7 {[%emt 0:00:07]} 55. Ra3 {[%emt 0:00:19]} Kf6 {[%emt 0:00:32]} 56. Ke4 {[%emt 0:00:14]} Rb2 {[%emt 0:00:22]} 57. Ra6+ {[%emt 0:00:30]} Kf7 {[%emt 0:00:18]} 58. Ra5 {[%emt 0:00:23]} Rb3 {[%emt 0:02:08]} 59. Rg5 {[%emt 0:00:44]} Rb4+ {[%emt 0:00:52]} 60. Ke5 {[%emt 0:00:10]} Rb5+ {[%emt 0:00:11]} 61. Kd6 {[%emt 0:00:10]} Rb6+ {[%emt 0:00:19]} 62. Kc5 {[%emt 0:00:26]} Rb3 {[%emt 0:01:20]} 63. f5 {[%emt 0:00:56]} gxf5 {[%emt 0:00:13]} 64. Rxf5+ {[%emt 0:00:14]} Kg6 {[%emt 0:00:16]} 65. Rg5+ {[%emt 0:00:10]} Kh6 {[%emt 0:00:03]} 66. Kd4 {[%emt 0:00:33]} Rb4+ {[%emt 0:00:15]} 67. Ke3 {[%emt 0:00:21]} Rb3+ {[%emt 0:00:02]} 68. Kf2 {[%emt 0:00:14]} Rb2+ {[%emt 0:00:11]} 69. Kf3 {[%emt 0:00:11]} Rb3+ {[%emt 0:00:04]} 70. Kg2 {[%emt 0:00:11]} Rb2+ {[%emt 0:00:02]} 71. Kh3 {[%emt 0:00:17]} Ra2 {[%emt 0:00:19]} 72. Rd5 {[%emt 0:00:47]} 1/2-1/2

[Event "Amsterdam Chess Open 2024"]
[Site "Amsterdam"]
[Date "2024.11.02"]
[Round "4.14"]
[White "Dumont, Ties"]
[Black "Schoonackers, Jeroen"]
[Result "1-0"]
[ECO "D18"]
[WhiteElo "1914"]
[BlackElo "1983"]
[Annotator "RC"]
[PlyCount "55"]
[EventDate "2024.10.31"]
[EventType "swiss"]
[EventCountry "NED"]
[SourceTitle "playchess.com"]
[Source "ChessBase"]
[SourceQuality "1"]
[TimeControl "5400+30"]

1. d4 {[%emt 0:00:02]} d5 {[%emt 0:00:12]} 2. c4 {[%emt 0:00:06]} c6 {[%emt 0:00:03]} 3. Nc3 {[%emt 0:00:07]} Nf6 {[%emt 0:00:05]} 4. Nf3 {[%emt 0:00:03]} dxc4 {[%emt 0:00:27]} 5. a4 {[%emt 0:00:43]} Bf5 {[%emt 0:00:05]} 6. e3 {[%emt 0:00:53]} e6 {[%emt 0:00:11]} 7. Bxc4 {[%emt 0:00:06]} Bb4 {[%emt 0:00:04]} 8. O-O {[%emt 0:00:26]} O-O {[%emt 0:00:06]} 9. Ne2 {[%emt 0:06:03]} Nbd7 {[%emt 0:02:17]} 10. Ng3 {[%emt 0:00:43]} Bg6 {[%emt 0:01:33]} 11. Qe2 {[%emt 0:04:46]} Ne4 {[%emt 0:05:12]} 12. Rd1 {[%emt 0:02:57]} Qe7 {[%emt 0:01:14]} 13. Nxe4 {[%emt 0:12:58]} Bxe4 {[%emt 0:00:13]} 14. Bd3 {[%emt 0:00:37]} Bxd3 {[%emt 0:04:25]} 15. Rxd3 {[%emt 0:01:31]} e5 {[%emt 0:23:42]} 16. e4 {[%emt 0:04:20]} h6 {[%emt 0:08:48]} 17. Rb3 {[%emt 0:06:51]} a5 {[%emt 0:03:24]} 18. Bd2 {[%emt 0:09:34]} exd4 {[%emt 0:10:14]} 19. Bxb4 {[%emt 0:04:16]} axb4 {[%emt 0:00:18]} 20. Nxd4 {[%emt 0:00:55]} Rfe8 {[%emt 0:03:40]} 21. Nf5 {[%emt 0:01:25]} Qe6 {[%emt 0:04:22]} 22. Qg4 {[%emt 0:06:46]} g6 {[%emt 0:00:40]} 23. Rh3 {[%emt 0:08:30]} Qxe4 {[%emt 0:02:19]} 24. Nxh6+ {[%emt 0:00:59]} Kg7 {[%emt 0:00:24]} 25. Qd1 {[%emt 0:09:41]} Nf6 {[%emt 0:09:15]} 26. Qd2 {[%emt 0:02:42]} Rad8 {[%emt 0:02:27]} 27. Nf5+ {[%emt 0:00:33]} Kg8 28. Rh8+ {[%emt 0:00:30]} 1-0

[Event "Amsterdam Chess Open 2024"]
[Site "Amsterdam"]
[Date "2024.11.02"]
[Round "4.15"]
[White "Boonstra, Jasper"]
[Black "Verschoor, Scott"]
[Result "1/2-1/2"]
[ECO "B59"]
[WhiteElo "1891"]
[BlackElo "1966"]
[Annotator "RC"]
[PlyCount "117"]
[EventDate "2024.10.31"]
[EventType "swiss"]
[EventCountry "NED"]
[SourceTitle "playchess.com"]
[Source "ChessBase"]
[SourceQuality "1"]
[TimeControl "5400+30"]

1. e4 {[%emt 0:00:03]} c5 {[%emt 0:00:05]} 2. Nf3 {[%emt 0:00:04]} d6 {[%emt 0:00:04]} 3. d4 {[%emt 0:00:05]} cxd4 {[%emt 0:00:04]} 4. Nxd4 {[%emt 0:00:07]} Nf6 {[%emt 0:00:04]} 5. Nc3 {[%emt 0:00:08]} Nc6 {[%emt 0:00:05]} 6. Be2 {[%emt 0:00:14]} e5 {[%emt 0:00:06]} 7. Nb3 {[%emt 0:00:13]} Be7 {[%emt 0:00:07]} 8. O-O {[%emt 0:00:06]} O-O {[%emt 0:00:04]} 9. Be3 {[%emt 0:00:19]} a5 {[%emt 0:00:06]} 10. a4 {[%emt 0:00:24]} Nb4 {[%emt 0:00:11]} 11. Kh1 {[%emt 0:02:43]} d5 {[%emt 0:03:21]} 12. exd5 {[%emt 0:00:27]} Nfxd5 {[%emt 0:00:08]} 13. Nxd5 {[%emt 0:02:56]} Nxd5 {[%emt 0:00:07]} 14. Bc5 {[%emt 0:00:47]} Bxc5 {[%emt 0:00:59]} 15. Nxc5 {[%emt 0:00:05]} b6 {[%emt 0:00:35]} 16. Bf3 {[%emt 0:01:55]} bxc5 {[%emt 0:01:27]} 17. Bxd5 {[%emt 0:01:23]} Rb8 {[%emt 0:00:09]} 18. b3 {[%emt 0:00:15]} Bb7 {[%emt 0:01:37]} 19. Bxb7 {[%emt 0:00:57]} Rxb7 {[%emt 0:00:11]} 20. Qe2 {[%emt 0:00:43]} Re8 {[%emt 0:03:11]} 21. Rad1 {[%emt 0:00:25]} Rd7 {[%emt 0:00:43]} 22. Rxd7 Qxd7 {[%emt 0:00:02]} 23. Rd1 {[%emt 0:00:50]} Qc6 {[%emt 0:00:27]} 24. Qb5 {[%emt 0:03:55]} Qxb5 {[%emt 0:02:35]} 25. axb5 {[%emt 0:00:06]} f6 {[%emt 0:02:10]} 26. g3 {[%emt 0:01:14]} Kf7 {[%emt 0:04:16]} 27. Rd6 {[%emt 0:01:52]} c4 {[%emt 0:02:46]} 28. Ra6 {[%emt 0:03:18]} cxb3 {[%emt 0:00:22]} 29. cxb3 {[%emt 0:00:05]} Rb8 {[%emt 0:02:30]} 30. Rxa5 {[%emt 0:00:50]} g5 {[%emt 0:00:30]} 31. Kg1 {[%emt 0:00:29]} Ke6 {[%emt 0:00:44]} 32. Ra6+ {[%emt 0:01:03]} Ke7 {[%emt 0:00:04]} 33. b6 {[%emt 0:00:17]} h5 {[%emt 0:09:27]} 34. Kf1 {[%emt 0:02:09]} f5 {[%emt 0:03:10]} 35. Ke2 {[%emt 0:00:14]} Kd6 {[%emt 0:00:52]} 36. Kd3 {[%emt 0:00:41]} Kc5 {[%emt 0:00:58]} 37. Ra5+ {[%emt 0:01:00]} Kd6 {[%emt 0:03:10]} 38. Rb5 {[%emt 0:00:17]} Rb7 {[%emt 0:00:05]} 39. Kc4 {[%emt 0:00:19]} h4 {[%emt 0:03:38]} 40. Rd5+ {[%emt 0:00:25]} Ke6 {[%emt 0:00:59]} 41. Kc5 {[%emt 0:00:20]} Rxb6 {[%emt 0:01:05]} 42. Rxe5+ {[%emt 0:01:21]} Kxe5 {[%emt 0:00:10]} 43. Kxb6 {[%emt 0:00:04]} hxg3 {[%emt 0:01:36]} 44. hxg3 {[%emt 0:00:08]} Ke4 {[%emt 0:05:07]} 45. b4 {[%emt 0:00:05]} Kf3 {[%emt 0:00:06]} 46. b5 {[%emt 0:00:09]} Kxf2 {[%emt 0:01:33]} 47. Kc5 {[%emt 0:00:48]} f4 {[%emt 0:00:36]} 48. gxf4 {[%emt 0:00:27]} gxf4 {[%emt 0:00:08]} 49. b6 {[%emt 0:00:03]} f3 {[%emt 0:00:07]} 50. b7 {[%emt 0:00:06]} Kg2 {[%emt 0:00:19]} 51. b8=Q {[%emt 0:00:06]} f2 {[%emt 0:00:17]} 52. Qg8+ {[%emt 0:00:06]} Kh1 {[%emt 0:00:37]} 53. Qh7+ {[%emt 0:00:06]} Kg1 {[%emt 0:00:10]} 54. Qg6+ {[%emt 0:00:06]} Kh1 {[%emt 0:00:10]} 55. Qh5+ {[%emt 0:00:05]} Kg1 {[%emt 0:00:17]} 56. Qg4+ {[%emt 0:00:05]} Kh1 {[%emt 0:00:11]} 57. Qf3+ {[%emt 0:00:05]} Kg1 {[%emt 0:00:11]} 58. Qg3+ {[%emt 0:00:04]} Kh1 {[%emt 0:00:08]} 59. Qf3+ {[%emt 0:02:45]} 1/2-1/2

[Event "Amsterdam Chess Open 2024"]
[Site "Amsterdam"]
[Date "2024.11.02"]
[Round "4.16"]
[White "Krylov, Philippe"]
[Black "Alekseev, Mikhail"]
[Result "1/2-1/2"]
[ECO "D36"]
[WhiteElo "1950"]
[BlackElo "1890"]
[Annotator "RC"]
[PlyCount "51"]
[EventDate "2024.10.31"]
[EventType "swiss"]
[EventCountry "NED"]
[SourceTitle "playchess.com"]
[Source "ChessBase"]
[SourceQuality "1"]
[TimeControl "5400+30"]

1. d4 {[%emt 0:00:11]} d5 {[%emt 0:01:59]} 2. c4 {[%emt 0:00:33]} e6 {[%emt 0:00:15]} 3. Nc3 {[%emt 0:00:05]} Nf6 {[%emt 0:00:03]} 4. cxd5 {[%emt 0:00:05]} exd5 {[%emt 0:00:19]} 5. Bg5 {[%emt 0:00:19]} Be7 {[%emt 0:00:15]} 6. e3 {[%emt 0:00:07]} O-O {[%emt 0:00:17]} 7. Bd3 {[%emt 0:00:06]} c6 {[%emt 0:01:35]} 8. Qc2 {[%emt 0:00:10]} Nbd7 {[%emt 0:00:42]} 9. Nge2 {[%emt 0:00:08]} Re8 {[%emt 0:00:57]} 10. O-O {[%emt 0:00:10]} Nf8 {[%emt 0:00:34]} 11. f3 {[%emt 0:07:40]} c5 {[%emt 0:09:21]} 12. Nf4 {[%emt 0:10:57]} cxd4 {[%emt 0:07:00]} 13. exd4 {[%emt 0:00:10]} h6 {[%emt 0:04:51]} 14. Bxf6 {[%emt 0:00:25]} Bxf6 {[%emt 0:00:03]} 15. Nfxd5 {[%emt 0:03:01]} Bxd4+ {[%emt 0:01:01]} 16. Kh1 {[%emt 0:00:01]} Be6 {[%emt 0:00:47]} 17. Nf4 {[%emt 0:01:35]} Rc8 {[%emt 0:01:34]} 18. Nxe6 {[%emt 0:08:31]} Nxe6 {[%emt 0:00:28]} 19. Rfd1 {[%emt 0:13:53]} Qa5 {[%emt 0:16:26]} 20. Rac1 {[%emt 0:21:50]} Rc7 {[%emt 0:12:59]} 21. Qa4 {[%emt 0:04:29]} Qxa4 {[%emt 0:05:32]} 22. Nxa4 {[%emt 0:00:21]} Rec8 {[%emt 0:00:58]} 23. Rxc7 {[%emt 0:01:27]} Rxc7 {[%emt 0:00:04]} 24. g3 {[%emt 0:01:37]} g6 {[%emt 0:07:49]} 25. f4 {[%emt 0:05:00]} Bf6 {[%emt 0:07:19]} 26. f5 {[%emt 0:05:50]} 1/2-1/2

[Event "Amsterdam Chess Open 2024"]
[Site "Amsterdam"]
[Date "2024.11.02"]
[Round "4.17"]
[White "Kuijken, Felix"]
[Black "Beijen, Mark"]
[Result "0-1"]
[ECO "C10"]
[WhiteElo "1823"]
[BlackElo "1945"]
[Annotator "RC"]
[PlyCount "74"]
[EventDate "2024.10.31"]
[EventType "swiss"]
[EventCountry "NED"]
[SourceTitle "playchess.com"]
[Source "ChessBase"]
[SourceQuality "1"]
[TimeControl "5400+30"]

1. e4 {[%emt 0:00:08]} e6 {[%emt 0:00:29]} 2. d4 {[%emt 0:00:12]} d5 {[%emt 0:00:10]} 3. Nc3 {[%emt 0:00:15]} Be7 {[%emt 0:00:18]} 4. Be3 {[%emt 0:03:27]} dxe4 {[%emt 0:09:26]} 5. Nxe4 {[%emt 0:00:22]} Nd7 {[%emt 0:00:22]} 6. Nf3 {[%emt 0:01:02]} Ngf6 {[%emt 0:00:22]} 7. Nxf6+ {[%emt 0:01:48]} Nxf6 {[%emt 0:00:22]} 8. Bd3 {[%emt 0:01:23]} O-O {[%emt 0:00:21]} 9. Qe2 {[%emt 0:02:55]} b6 {[%emt 0:09:15]} 10. O-O-O {[%emt 0:03:55]} Bb7 {[%emt 0:00:44]} 11. c3 {[%emt 0:01:22]} Qc8 {[%emt 0:03:57]} 12. Ng5 {[%emt 0:14:47]} c5 {[%emt 0:06:38]} 13. h4 {[%emt 0:07:35]} Bd5 {[%emt 0:08:46]} 14. Kb1 {[%emt 0:13:50]} c4 {[%emt 0:07:49]} 15. Bc2 {[%emt 0:02:02]} a5 {[%emt 0:00:35]} 16. Ba4 {[%emt 0:09:54]} Qa6 {[%emt 0:04:28]} 17. Bc2 {[%emt 0:09:29]} b5 {[%emt 0:01:08]} 18. Kc1 {[%emt 0:07:02]} b4 {[%emt 0:01:51]} 19. Kd2 {[%emt 0:00:53]} a4 {[%emt 0:01:52]} 20. a3 {[%emt 0:14:42]} bxc3+ {[%emt 0:08:11]} 21. bxc3 {[%emt 0:00:21]} Rab8 {[%emt 0:03:18]} 22. Ra1 {[%emt 0:01:57]} Qc6 {[%emt 0:04:58]} 23. f3 {[%emt 0:00:27]} Rfd8 {[%emt 0:01:19]} 24. Bf4 {[%emt 0:00:47]} Rb7 {[%emt 0:01:53]} 25. h5 {[%emt 0:01:18]} h6 {[%emt 0:03:37]} 26. Nh3 {[%emt 0:00:16]} Bd6 {[%emt 0:02:02]} 27. Bxd6 {[%emt 0:00:49]} Qxd6 {[%emt 0:00:55]} 28. Nf2 {[%emt 0:00:57]} Re7 {[%emt 0:02:32]} 29. Ne4 {[%emt 0:00:27]} Bxe4 {[%emt 0:05:21]} 30. fxe4 {[%emt 0:00:07]} e5 {[%emt 0:00:34]} 31. Qxc4 {[%emt 0:00:53]} exd4 {[%emt 0:00:25]} 32. cxd4 {[%emt 0:00:16]} Nxe4+ {[%emt 0:00:22]} 33. Kc1 {[%emt 0:00:42]} Rc7 {[%emt 0:04:53]} 34. Qxa4 {[%emt 0:00:29]} Qf4+ {[%emt 0:00:21]} 35. Kb2 {[%emt 0:00:27]} Rb8+ {[%emt 0:00:19]} 36. Bb3 {[%emt 0:00:11]} Qd2+ {[%emt 0:00:16]} 37. Kb1 {[%emt 0:00:10]} Nc3# {[%emt 0:00:41]} 0-1

[Event "Amsterdam Chess Open 2024"]
[Site "Amsterdam"]
[Date "2024.11.02"]
[Round "4.18"]
[White "Leorato, Imanol"]
[Black "Schiebroek, Luc"]
[Result "1/2-1/2"]
[ECO "B01"]
[WhiteElo "1811"]
[BlackElo "1952"]
[Annotator "RC"]
[PlyCount "106"]
[EventDate "2024.10.31"]
[EventType "swiss"]
[EventCountry "NED"]
[SourceTitle "playchess.com"]
[Source "ChessBase"]
[SourceQuality "1"]
[TimeControl "5400+30"]

1. e4 {[%emt 0:00:20]} d5 {[%emt 0:00:12]} 2. exd5 {[%emt 0:00:12]} Nf6 {[%emt 0:00:07]} 3. Nf3 {[%emt 0:00:42]} Bg4 {[%emt 0:00:12]} 4. d4 {[%emt 0:00:44]} Qxd5 {[%emt 0:00:08]} 5. Be2 {[%emt 0:00:20]} Nc6 {[%emt 0:00:08]} 6. c4 {[%emt 0:00:34]} Qf5 {[%emt 0:00:16]} 7. Be3 {[%emt 0:00:54]} O-O-O {[%emt 0:02:57]} 8. Nc3 {[%emt 0:00:48]} e5 {[%emt 0:04:40]} 9. d5 {[%emt 0:00:26]} e4 {[%emt 0:03:37]} 10. Nd4 {[%emt 0:00:32]} Nxd4 {[%emt 0:00:08]} 11. Bxd4 {[%emt 0:00:15]} a6 {[%emt 0:11:55]} 12. h3 {[%emt 0:03:41]} Bxe2 {[%emt 0:00:17]} 13. Qxe2 {[%emt 0:00:14]} Bb4 {[%emt 0:05:23]} 14. O-O {[%emt 0:01:41]} Rhe8 {[%emt 0:01:55]} 15. a3 {[%emt 0:06:00]} Bxc3 {[%emt 0:05:51]} 16. bxc3 {[%emt 0:01:26]} Nh5 {[%emt 0:02:04]} 17. Rab1 {[%emt 0:02:29]} Rd6 {[%emt 0:04:17]} 18. Qg4 {[%emt 0:16:59]} Qxg4 {[%emt 0:02:53]} 19. hxg4 {[%emt 0:00:04]} Nf4 {[%emt 0:02:25]} 20. Rfe1 {[%emt 0:00:21]} h5 {[%emt 0:12:27]} 21. f3 {[%emt 0:04:46]} hxg4 {[%emt 0:01:10]} 22. Rxe4 {[%emt 0:00:56]} Rxe4 {[%emt 0:01:23]} 23. fxe4 {[%emt 0:00:04]} Ne2+ {[%emt 0:09:31]} 24. Kf2 {[%emt 0:00:23]} Nxd4 {[%emt 0:00:07]} 25. cxd4 {[%emt 0:01:21]} Rf6+ {[%emt 0:01:20]} 26. Ke3 {[%emt 0:03:40]} g3 {[%emt 0:01:19]} 27. Rh1 {[%emt 0:02:15]} Rf2 {[%emt 0:00:45]} 28. Rh7 {[%emt 0:00:46]} g5 {[%emt 0:03:19]} 29. Rg7 {[%emt 0:00:20]} Rxg2 {[%emt 0:01:43]} 30. Rxg5 {[%emt 0:00:45]} Ra2 {[%emt 0:00:56]} 31. e5 {[%emt 0:00:32]} Rxa3+ {[%emt 0:01:31]} 32. Ke4 {[%emt 0:00:25]} Kd7 {[%emt 0:01:45]} 33. Rg7 {[%emt 0:01:27]} Ke8 {[%emt 0:03:14]} 34. d6 {[%emt 0:01:47]} cxd6 {[%emt 0:03:46]} 35. exd6 {[%emt 0:00:07]} a5 {[%emt 0:05:42]} 36. c5 {[%emt 0:01:31]} Rc3 {[%emt 0:02:12]} 37. Rg8+ {[%emt 0:02:34]} Kd7 {[%emt 0:00:22]} 38. Rf8 {[%emt 0:01:00]} g2 {[%emt 0:01:36]} 39. Rxf7+ {[%emt 0:00:30]} Ke8 {[%emt 0:01:01]} 40. Rg7 {[%emt 0:00:16]} Rc2 {[%emt 0:00:31]} 41. Kd3 {[%emt 0:00:25]} Rf2 {[%emt 0:01:52]} 42. Kc4 {[%emt 0:02:14]} Kf8 {[%emt 0:01:01]} 43. Rg3 {[%emt 0:00:59]} a4 {[%emt 0:01:07]} 44. Kb4 {[%emt 0:01:40]} Rd2 {[%emt 0:00:35]} 45. Kxa4 {[%emt 0:00:22]} Rxd4+ {[%emt 0:00:10]} 46. Kb5 {[%emt 0:00:06]} Rd2 {[%emt 0:00:42]} 47. Kc4 {[%emt 0:13:30]} Ke8 {[%emt 0:00:38]} 48. Kc3 {[%emt 0:00:34]} Rf2 {[%emt 0:00:17]} 49. Kd4 {[%emt 0:02:01]} Rd2+ {[%emt 0:00:19]} 50. Kc4 {[%emt 0:02:31]} Rc2+ {[%emt 0:00:09]} 51. Kb5 {[%emt 0:00:13]} Rb2+ {[%emt 0:00:56]} 52. Ka5 {[%emt 0:00:57]} Kd7 {[%emt 0:00:38]} 53. Rg7+ {[%emt 0:00:06]} Kd8 {[%emt 0:00:19]} 1/2-1/2

[Event "Amsterdam Chess Open 2024"]
[Site "Amsterdam"]
[Date "2024.11.02"]
[Round "4.19"]
[White "De Witte, Stein"]
[Black "Leentjens, Gilbert"]
[Result "1/2-1/2"]
[ECO "A11"]
[WhiteElo "1921"]
[BlackElo "1872"]
[Annotator "RC"]
[PlyCount "67"]
[EventDate "2024.10.31"]
[EventType "swiss"]
[EventCountry "NED"]
[SourceTitle "playchess.com"]
[Source "ChessBase"]
[SourceQuality "1"]
[TimeControl "5400+30"]

1. d4 {[%emt 0:00:05]} Nf6 {[%emt 0:00:01]} 2. Nf3 {[%emt 0:00:18]} g6 {[%emt 0:00:01]} 3. g3 {[%emt 0:00:10]} Bg7 {[%emt 0:00:08]} 4. Bg2 {[%emt 0:00:11]} d5 {[%emt 0:00:25]} 5. O-O {[%emt 0:00:37]} O-O {[%emt 0:00:41]} 6. c4 {[%emt 0:01:20]} c6 {[%emt 0:00:10]} 7. b3 {[%emt 0:01:24]} a5 {[%emt 0:06:00]} 8. Nc3 {[%emt 0:00:42]} Ne4 {[%emt 0:00:21]} 9. Bb2 {[%emt 0:05:19]} Nxc3 {[%emt 0:07:23]} 10. Bxc3 {[%emt 0:00:03]} dxc4 {[%emt 0:00:27]} 11. bxc4 {[%emt 0:01:45]} Be6 {[%emt 0:05:25]} 12. Qd3 {[%emt 0:05:27]} Na6 {[%emt 0:12:26]} 13. a3 {[%emt 0:04:54]} Nc5 {[%emt 0:12:52]} 14. Qc2 {[%emt 0:11:17]} Bf5 {[%emt 0:00:54]} 15. Qd1 {[%emt 0:03:23]} Ne4 {[%emt 0:03:08]} 16. Bb2 {[%emt 0:05:46]} Nd6 {[%emt 0:08:13]} 17. Qc1 {[%emt 0:09:57]} b5 {[%emt 0:07:56]} 18. cxb5 {[%emt 0:04:24]} cxb5 {[%emt 0:02:51]} 19. Ne5 {[%emt 0:03:48]} Be4 {[%emt 0:12:26]} 20. Bxe4 {[%emt 0:07:49]} Nxe4 {[%emt 0:00:49]} 21. Qc6 {[%emt 0:06:40]} Nd6 {[%emt 0:01:46]} 22. Rfd1 {[%emt 0:03:31]} Rc8 {[%emt 0:01:47]} 23. Qf3 {[%emt 0:01:28]} Nc4 {[%emt 0:00:36]} 24. Bc3 {[%emt 0:02:05]} Nxe5 {[%emt 0:02:43]} 25. dxe5 {[%emt 0:00:07]} Qc7 {[%emt 0:00:34]} 26. Rac1 {[%emt 0:07:47]} Bxe5 {[%emt 0:00:40]} 27. Bd2 {[%emt 0:00:35]} Qb6 {[%emt 0:05:48]} 28. Be3 {[%emt 0:02:20]} Qb8 {[%emt 0:00:25]} 29. Bc5 {[%emt 0:02:56]} Rfe8 {[%emt 0:03:01]} 30. Qe3 {[%emt 0:02:57]} Bb2 {[%emt 0:01:44]} 31. Rb1 {[%emt 0:01:18]} Bf6 {[%emt 0:01:30]} 32. Ba7 {[%emt 0:00:20]} Qb7 {[%emt 0:00:10]} 33. Qb6 {[%emt 0:00:04]} Qxb6 34. Bxb6 1/2-1/2

[Event "Amsterdam Chess Open 2024"]
[Site "Amsterdam"]
[Date "2024.11.02"]
[Round "4.20"]
[White "Fritschy, Pieter"]
[Black "Tomas Gallardo Banez"]
[Result "1-0"]
[ECO "D94"]
[WhiteElo "1930"]
[BlackElo "1834"]
[Annotator "RC"]
[PlyCount "81"]
[EventDate "2024.10.31"]
[EventType "swiss"]
[EventCountry "NED"]
[SourceTitle "playchess.com"]
[Source "ChessBase"]
[SourceQuality "1"]
[TimeControl "5400+30"]

1. d4 {[%emt 0:00:04]} Nf6 {[%emt 0:00:05]} 2. Nf3 {[%emt 0:00:04]} g6 {[%emt 0:00:10]} 3. c4 {[%emt 0:00:28]} Bg7 {[%emt 0:00:06]} 4. Nc3 {[%emt 0:00:22]} d5 {[%emt 0:00:18]} 5. e3 {[%emt 0:01:17]} O-O {[%emt 0:03:13]} 6. Bd2 {[%emt 0:03:59]} c5 {[%emt 0:02:47]} 7. Qb3 {[%emt 0:05:21]} cxd4 {[%emt 0:05:16]} 8. Nxd5 {[%emt 0:04:09]} dxe3 {[%emt 0:06:07]} 9. Nxf6+ {[%emt 0:02:23]} Bxf6 {[%emt 0:00:41]} 10. Bxe3 {[%emt 0:00:09]} Nd7 {[%emt 0:02:11]} 11. Be2 {[%emt 0:01:01]} Qc7 {[%emt 0:03:17]} 12. O-O {[%emt 0:03:28]} Nc5 {[%emt 0:00:28]} 13. Qa3 {[%emt 0:02:45]} b6 {[%emt 0:02:08]} 14. Rac1 {[%emt 0:00:50]} Bb7 {[%emt 0:05:28]} 15. Rfd1 {[%emt 0:02:48]} Rfd8 {[%emt 0:04:19]} 16. Nd4 {[%emt 0:07:31]} e5 {[%emt 0:08:51]} 17. Nb5 {[%emt 0:03:20]} Qc6 {[%emt 0:02:14]} 18. Bf3 {[%emt 0:00:34]} e4 {[%emt 0:00:55]} 19. Be2 {[%emt 0:00:12]} Nd3 {[%emt 0:00:31]} 20. Rc2 {[%emt 0:03:15]} a6 {[%emt 0:16:25]} 21. Nc3 {[%emt 0:00:06]} Qxc4 {[%emt 0:01:02]} 22. Bxb6 {[%emt 0:03:34]} Re8 {[%emt 0:04:34]} 23. Qa4 {[%emt 0:09:47]} Qe6 {[%emt 0:02:12]} 24. Be3 {[%emt 0:00:23]} Bc6 {[%emt 0:04:25]} 25. Qa3 {[%emt 0:02:09]} Ne5 {[%emt 0:02:13]} 26. Rd6 {[%emt 0:05:10]} Qe7 {[%emt 0:00:07]} 27. Bc5 {[%emt 0:00:32]} e3 {[%emt 0:07:21]} 28. Rxc6 {[%emt 0:02:25]} exf2+ {[%emt 0:00:16]} 29. Kxf2 {[%emt 0:04:44]} Nd3+ {[%emt 0:02:37]} 30. Bxd3 {[%emt 0:02:17]} Qe1+ {[%emt 0:01:27]} 31. Kf3 {[%emt 0:00:09]} Rad8 {[%emt 0:03:33]} 32. Be2 {[%emt 0:12:37]} Bg5 {[%emt 0:08:27]} 33. Ne4 {[%emt 0:03:31]} Rxe4 {[%emt 0:01:13]} 34. Kxe4 {[%emt 0:01:17]} Qh4+ {[%emt 0:00:22]} 35. g4 {[%emt 0:00:18]} Qxh2 {[%emt 0:01:44]} 36. Qf3 {[%emt 0:01:33]} Qb8 {[%emt 0:00:54]} 37. Bc4 {[%emt 0:01:22]} Rd7 {[%emt 0:00:03]} 38. Rd6 {[%emt 0:02:43]} Qb7+ {[%emt 0:00:44]} 39. Bd5 {[%emt 0:00:07]} Re7+ {[%emt 0:00:06]} 40. Kd3 {[%emt 0:00:54]} Qb5+ {[%emt 0:00:27]} 41. Rc4 {[%emt 0:00:08]} 1-0